Cogmind - Beta 13 @@@ ROGUE MODE // 2024.04.02 @ 16:51:34 Player: Kit Redgrave Result: Self-destructed Performance ------------- Evolutions (0) 0 Regions Visited (4) 800 Robots Destroyed (15) 75 Value Destroyed (278) 278 Prototype IDs (23) 460 Alien Tech Used (0) 0 Bonus (300) 300 TOTAL SCORE: 1913 Bonus ------- Aligned with FarCom 300 Cogmind --------- Core Integrity 118/250 Matter 153/300 Energy 249/265 System Corruption 0% Temperature Cool (0) Movement Walking (260) Ox2 Location -9/Mines Parts ------- > --- POWER (1) -------- Improved Ion Engine > --- PROPULSION (2) --- Aluminum Leg Aluminum Leg > --- UTILITY (2) ------ High-capacity Storage Unit > --- WEAPON (2) ------- Improved Light Cannon Rocket Launcher > --- INVENTORY (20) --- Improved Ion Engine Cloak of Protection Medium Laser Improved Light Cannon Mini Grenade Launcher Datajack Peak State ------------ > --- POWER ------------ Improved Ion Engine > --- PROPULSION ------- Aluminum Leg Aluminum Leg > --- UTILITY ---------- Visual Processing Unit Cloak of Protection > --- WEAPON ----------- Improved Light Cannon Mini Grenade Launcher > --- INVENTORY -------- Improved Ion Engine Improved Light Cannon Mini Grenade Launcher Datajack [Rating: 18] Favorites ----------- Power Improved Ion Engine Engine Improved Ion Engine Power Core Light Nuclear Core Propulsion Aluminum Leg Leg Aluminum Leg Utility Visual Processing Unit Device Heat Sink Storage High-capacity Storage Unit Processor Visual Processing Unit Weapon Improved Light Cannon Energy Gun Medium Laser Energy Cannon Latent Energy Streamer Ballistic Cannon Improved Light Cannon Launcher Mini Grenade Launcher Build | -11 -10 -10 -10 -9 ------- Run | Yrd Mat Min Exi Min Slots Evolved . | . . . . . Power . | . . . . . Propulsion . | . . . . . Utility . | . . . . . Weapon . | . . . . . Parts Attached 21 | 5 9 . 4 3 Power 4 | 1 3 . . . Engine 3 | 1 2 . . . Core 1 | . 1 . . . Reactor . | . . . . . Propulsion 2 | 2 . . . . Treads . | . . . . . Leg 2 | 2 . . . . Wheel . | . . . . . Hover . | . . . . . Flight . | . . . . . Utility 6 | . 2 . 2 2 Device 4 | . 1 . 2 1 Storage 1 | . . . . 1 Processor 1 | . 1 . . . Hackware . | . . . . . Protection . | . . . . . Artifact . | . . . . . Weapon 9 | 2 4 . 2 1 Energy Gun 3 | 2 1 . . . Energy Cannon 1 | . . . 1 . Ballistic Gun . | . . . . . Ballistic Cannon 1 | . 1 . . . Launcher 4 | . 2 . 1 1 Special Weapon . | . . . . . Impact Weapon . | . . . . . Slashing Weapon . | . . . . . Piercing Weapon . | . . . . . Special Melee Weapon . | . . . . . Unidentified Prototypes 3 | . . . 3 . Parts Lost 2 | . 2 . . . Power 1 | . 1 . . . Propulsion . | . . . . . Utility . | . . . . . Weapon 1 | . 1 . . . Highest Loss Streak 2 | . 2 . . . To Critical Strikes . | . . . . . Average Slot Usage (%) 95 | . 87 100 99 99 Engine 13 | . 10 14 14 14 Core 1 | . 3 . . . Leg 28 | . 28 28 28 28 Device 9 | . 7 14 13 7 Storage 3 | . . . . 12 Processor 10 | . 9 14 14 8 Energy Gun 7 | . 22 . . . Ballistic Cannon 10 | . 3 14 14 14 Launcher 10 | . 2 14 14 14 Naked Turns . | . . . . . Heaviest Build 60 | 7 14 13 20 60 Greatest Support 20 | 20 20 20 20 20 Greatest Overweight (x) 2 | . . . . 2 Average Overweight (x) . | . . . . 1 Largest Inventory Capacity 20 | 5 5 5 5 20 Average Capacity 8 | 5 5 5 5 18 Most Carried 6 | 3 5 5 5 6 Average Carried 4 | 1 3 5 4 5 Final Capacity 20 | 5 5 5 5 20 Final Carried 6 | 2 5 5 5 6 Class Distribution -------------------- 100% | Mutant Dominant Class ---------------- Mutant | -10/Materials Mutant | -10/Mines Mutant | -10/Exiles Mutant | -9/Mines Resources | -11 -10 -10 -10 -9 ----------- Run | Yrd Mat Min Exi Min Matter Collected 395 | 240 99 . . 56 Remotely . | . . . . . Salvage Created 304 | 65 228 . . 11 Parts 23 | 3 17 . . 3 Haulers Intercepted 1 | . 1 . . . Recyclers Shooed 2 | . 2 . . . Parts Field Recycled . | . . . . . Retrieved Matter . | . . . . . Parts Self-Destructed . | . . . . . Prevented . | . . . . . Kills | -11 -10 -10 -10 -9 ------- Run | Yrd Mat Min Exi Min Combat Hostiles Destroyed 11 | 1 7 . . 3 Guns 4 | . 4 . . . Cannons 4 | . 1 . . 3 AOE 2 | . 2 . . . Classes Destroyed 5 | 2 3 . . . Worker 1 | 1 . . . . Hauler 1 | . 1 . . . Watcher 2 | . 2 . . . Swarmer 6 | . 3 . . 3 Grunt 5 | 1 4 . . . Best Kill Streak 3 | 1 3 . . 2 Combat Bots Only 3 | 1 3 . . 2 Max Kills in Single Turn 1 | 1 1 . . 1 Gunslinging . | . . . . . Exploded 1 | . 1 . . . Melee . | . . . . . Uniques/NPCs Destroyed . | . . . . . Combat | -11 -10 -10 -10 -9 -------- Run | Yrd Mat Min Exi Min Hostile Shots Fired 81 | 13 33 . . 35 Missed 15 | 2 8 . . 5 Damage Taken 649 | 149 253 . . 247 Core 132 | 36 45 . . 51 Absorbed by Shields . | . . . . . Core Remaining (%) 85 | 85 . . . . Volleys Fired 71 | 11 41 . . 19 Largest 2 | 2 2 . . 1 Hottest 90 | 90 90 . . 39 Shots Fired 89 | 20 50 . . 19 Gun 62 | 20 42 . . . Cannon 23 | . 4 . . 19 Launcher 4 | . 4 . . . Special . | . . . . . Kinetic 23 | . 4 . . 19 Thermal 46 | 9 37 . . . Explosive 4 | . 4 . . . Electromagnetic 16 | 11 5 . . . Robot Hit Streak 12 | 5 12 . . 2 Robot Miss Streak 4 | 2 3 . . 4 Penetration Max . | . . . . . Secondary Targets . | . . . . . Shots Hit Robots 52 | 14 31 . . 7 Core Hits 20 | 3 14 . . 3 Critical Kills . | . . . . . Critical Parts Destroyed . | . . . . . Critical Strikes 3 | 1 1 . . 1 Burn 1 | 1 . . . . Blast 1 | . . . . 1 Corrupt 1 | . 1 . . . Melee Attacks . | . . . . . Impact . | . . . . . Slashing . | . . . . . Piercing . | . . . . . Sneak Attacks . | . . . . . Combat Hostiles . | . . . . . Follow-up Attacks . | . . . . . Damage Inflicted 936 | 224 570 . . 142 Guns 560 | 188 372 . . . Cannons 160 | . 18 . . 142 Explosions 216 | 36 180 . . . Melee . | . . . . . Ramming . | . . . . . Kinetic 160 | . 18 . . 142 Thermal 391 | 99 292 . . . Explosive 180 | . 180 . . . Electromagnetic 205 | 125 80 . . . Impact . | . . . . . Slashing . | . . . . . Piercing . | . . . . . Highest Corruption . | . . . . . Average Corruption . | . . . . . Corruption Purged . | . . . . . Corruption Blocked . | . . . . . Overload Shots . | . . . . . Overflow Damage 2 | . . . . 2 Projectiles 2 | . . . . 2 Explosions . | . . . . . Melee . | . . . . . Knockbacks 1 | . . . . 1 Impact . | . . . . . Kinetic 1 | . . . . 1 Secondary . | . . . . . Self-Inflicted Damage 49 | 25 24 . . . Shots 2 | 1 1 . . . Rammed . | . . . . . Targets Rammed . | . . . . . Kicked . | . . . . . Crushed . | . . . . . Highest Temperature 330 | 330 48 . . . Average Temperature 104 | 171 11 . . . Received Heat Transfer 126 | 66 60 . . . Siege Activations . | . . . . . Robots Corrupted 1 | 1 . . . . Combat Hostiles 1 | 1 . . . . Parts Fried 1 | 1 . . . . Impact Corruptions . | . . . . . Robots Melted . | . . . . . Combat Hostiles . | . . . . . Parts Melted 2 | . 2 . . . Heat Transferred 1175 | 359 816 . . . Parts Sabotaged . | . . . . . Parts Stolen . | . . . . . Parts Stripped . | . . . . . Power Chain Reactions 1 | 1 . . . . Alert | -11 -10 -10 -10 -9 ------- Run | Yrd Mat Min Exi Min Peak Influence 207 | 25 207 36 . 118 Initial 36 | . 16 36 . . Average 44 | 15 67 36 . 32 Maximum Alert Level 1 | . 1 . . . Low Security (%) 97 | 100 94 100 . 100 Level 1 2 | . 5 . . . Level 2 . | . . . . . Level 3 . | . . . . . Level 4 . | . . . . . Level 5 . | . . . . . High Security . | . . . . . Max Security . | . . . . . Squads Dispatched 1 | . 1 . . . Investigation 1 | . 1 . . . Extermination . | . . . . . Reinforcement . | . . . . . Assault . | . . . . . Garrison . | . . . . . Intercept . | . . . . . Searches Triggered . | . . . . . Construction Impeded . | . . . . . Haulers Reinforced . | . . . . . Active Scanning Responses . | . . . . . Cargo Convoy Interrupts . | . . . . . Stealth | -11 -10 -10 -10 -9 --------- Run | Yrd Mat Min Exi Min Distress Signals . | . . . . . Communications Jammed . | . . . . . Distress Signals . | . . . . . Times Spotted 17 | 1 10 . . 6 Peak Tracking Total 3 | 1 3 . . 3 Tactical Retreats 2 | . . . . 2 Traps | -11 -10 -10 -10 -9 ------- Run | Yrd Mat Min Exi Min Traps Triggered . | . . . . . Indirectly . | . . . . . Trap Hack Attempts . | . . . . . Triggered . | . . . . . Disarmed . | . . . . . Reprogrammed . | . . . . . Reused . | . . . . . Traps Extracted . | . . . . . Installed . | . . . . . Triggered . | . . . . . Machines | -11 -10 -10 -10 -9 ---------- Run | Yrd Mat Min Exi Min Machines Disabled . | . . . . . Max in Single Turn . | . . . . . Machines Repaired . | . . . . . Machines Dismantled . | . . . . . Machines Sabotaged . | . . . . . Overloaded Fab Kills . | . . . . . Hacking | -11 -10 -10 -10 -9 --------- Run | Yrd Mat Min Exi Min Machines Accessed 9 | . 4 . 5 . Terminals 4 | . 4 . . . Fabricators . | . . . . . Repair Stations . | . . . . . Recycling Units . | . . . . . Scanalyzers . | . . . . . Garrison Access . | . . . . . Total Hacks 68 | . 18 . 50 . Successful 57 | . 7 . 50 . Failed 11 | . 11 . . . Catastrophic 2 | . 2 . . . Database Lockouts . | . . . . . Manual 9 | . 4 . 5 . Terminals 18 | . 18 . . . Fabricators . | . . . . . Repair Stations . | . . . . . Recycling Units . | . . . . . Scanalyzers . | . . . . . Garrison Access . | . . . . . Terminal Hacks 57 | . 7 . 50 . Record 53 | . 4 . 49 . Part Schematic 1 | . 1 . . . Locate Traps 1 | . 1 . . . Dispatch Records 1 | . 1 . . . Derelict Proto ID Bank 1 | . . . 1 . Fabricator Hacks . | . . . . . Repair Station Hacks . | . . . . . Recycling Unit Hacks . | . . . . . Scanalyzer . | . . . . . Garrison Access Hacks . | . . . . . Unauthorized Hacks . | . . . . . Terminals . | . . . . . Fabricators . | . . . . . Repair Stations . | . . . . . Recycling Units . | . . . . . Scanalyzers . | . . . . . Garrison Access . | . . . . . Data Cores Recovered . | . . . . . Used . | . . . . . Hacking Detections 4 | . 4 . . . Full Trace Events 3 | . 3 . . . Feedback Events . | . . . . . Feedback Blocked . | . . . . . Robot Schematics Acquired . | . . . . . Robots Built . | . . . . . Authchips . | . . . . . Time . | . . . . . Total Robot Build Rating . | . . . . . Part Schematics Acquired 1 | . 1 . . . Parts Built . | . . . . . Authchips . | . . . . . Time . | . . . . . Total Part Build Rating . | . . . . . Parts Repaired . | . . . . . Time . | . . . . . Parts Recycled . | . . . . . Recycled Matter . | . . . . . Retrieved Matter . | . . . . . Retrieved Components . | . . . . . Parts Scanalyzed . | . . . . . Part Schematics Acquired . | . . . . . Parts Damaged . | . . . . . Bothacking | -11 -10 -10 -10 -9 ------------ Run | Yrd Mat Min Exi Min Used RIF Installer . | . . . . . Robots Hacked . | . . . . . Non-combat . | . . . . . Combat . | . . . . . Robot Hacks Applied . | . . . . . Relay Couplers Released . | . . . . . Fabnet Peak Effective % . | . . . . . Robots Rewired . | . . . . . Allies Hacked . | . . . . . Hacks Repelled . | . . . . . Allies | -11 -10 -10 -10 -9 -------- Run | Yrd Mat Min Exi Min Total Allies . | . . . . . Largest Group . | . . . . . Highest-Rated Group . | . . . . . Highest-Rated Ally . | . . . . . Total Orders . | . . . . . Ally Attacks . | . . . . . Total Damage . | . . . . . Kills . | . . . . . Allies Corrupted . | . . . . . Allies Melted . | . . . . . Intel | -11 -10 -10 -10 -9 ------- Run | Yrd Mat Min Exi Min Robot Analysis Total . | . . . . . Derelict Logs Recovered 1 | . . . . 1 Drone Launches . | . . . . . Drone Recoveries . | . . . . . Exploration | -11 -10 -10 -10 -9 ------------- Run | Yrd Mat Min Exi Min Turns Passed 2355 | 255 674 46 713 667 Spaces Moved 1439 | 101 460 39 572 267 Core 17 | 17 . . . . Treads . | . . . . . Legs 1422 | 84 460 39 572 267 Wheels . | . . . . . Hover . | . . . . . Flight . | . . . . . Fastest Speed 50 | 50 120 120 120 120 Average Speed 139 | 108 120 120 120 230 Slowest Speed 260 | 120 120 120 120 260 Overloaded Moves . | . . . . . Propulsion Burnouts . | . . . . . Robots Hopped . | . . . . . Cave-ins Triggered . | . . . . . Time Travels 1 | . . . 1 . Exploration Rate (%) 44 | 12 51 19 93 48 Regions Visited 4 Branch Regions 3 Pre-discovered Areas 1 | . . . 1 . Known Exits Taken . | . . . . . Unknown Exits Taken 4 | 1 1 1 1 . Scrap Searched 2 | . . . . 2 Spaces Dug . | . . . . . Terrain Destroyed 39 | . 35 . . 4 Melee . | . . . . . Projectile 4 | . . . . 4 AOE 35 | . 35 . . . Terrain Rammed . | . . . . . Walls Destroyed . | . . . . . Machines Disabled . | . . . . . Actions | -11 -10 -10 -10 -9 --------- Run | Yrd Mat Min Exi Min Total 1697 | 226 531 38 600 302 Wait 128 | 103 7 . 14 4 Move 1435 | 100 459 38 571 267 Hop . | . . . . . Pick Up 27 | 7 10 . 6 4 Fast Attach 2 | . 2 . . . Attach 12 | 5 3 . 3 1 Detach 1 | . . . . 1 Swap 7 | . 4 . 1 2 Drop 14 | . 5 . 5 4 Fire 71 | 11 41 . . 19 Melee . | . . . . . Ram . | . . . . . Kick . | . . . . . Crush . | . . . . . Escape Stasis . | . . . . . Rewire . | . . . . . Trap . | . . . . . Miscellaneous . | . . . . . Route ------- -11/Scrapyard -10/Materials (discovered 3 exits: [*Mat] / [*Min x2]) -10/Mines -10/Exiles (discovered 2 exits: [*Min x2]) -9/Mines (discovered 1 exit: [*Mat]) History --------- Turn | Location | Event 2 | -11/Scrapyard | Met Revision 17 74 | -11/Scrapyard | Discovered new exit (range 8) 256 | -11/Scrapyard | Entered Materials 292 | -10/Materials | Discovered new exit (range 16) 314 | -10/Materials | Build established: Mutant 662 | -10/Materials | Discovered new exit (range 9) 775 | -10/Materials | Discovered new exit (range 17) 930 | -10/Materials | Entered Mines 970 | -10/Mines | Deemed a non-threat by the Exiles lab entrance 971 | -10/Mines | Discovered new exit (range 5) 976 | -10/Mines | Entered Exiles 993 | -10/Exiles | Discovered new exit (range 17) 1006 | -10/Exiles | Met 8R-AWN 1027 | -10/Exiles | Met EX-HEX 1072 | -10/Exiles | Met EX-DEC 1088 | -10/Exiles | Learned location of Zion (-7) 1136 | -10/Exiles | Discovered new exit (range 15) 1216 | -10/Exiles | Visited The Gauntlet 1382 | -10/Exiles | Met EX-BIN 1474 | -10/Exiles | Aligned with FarCom system 1476 | -10/Exiles | Given EX-Vault access code 1504 | -10/Exiles | Opened EX-Vault 1512 | -10/Exiles | Found Prototype Device 1514 | -10/Exiles | Identified Cloak of Protection 1519 | -10/Exiles | Found Prototype Device 1520 | -10/Exiles | Identified Chronowheel 1520 | -10/Exiles | Activated Chronowheel 1520 | -10/Exiles | Spacetime reconverged on an earlier point 1525 | -10/Exiles | Found Prototype Energy Cannon 1526 | -10/Exiles | Identified Latent Energy Streamer 1574 | -10/Exiles | Warned to stay clear of 0b10 Research branches 1689 | -10/Exiles | Left Exiles lab with Cloak of Protection 1689 | -10/Exiles | Entered Mines 1837 | -9/Mines | Discovered new exit (range 9) 2135 | -9/Mines | Learned Materials interactive machine intel 2195 | -9/Mines | Core integrity fell below 50% 2339 | -9/Mines | Received a Rocket Launcher from a helpful Derelict 2356 | -9/Mines | Self-destructed Last Messages --------------- 02162_ S-10 Pest knocked back. 02164_ S-10 Pest destroyed. 02176_ U-05 Engineer builds a Wall. 02183_ Destroyed Flight Unit. 02187_ S-10 Pest destroyed. 02192_ Acquired 1 matter. 02195_ S-10 Pest Lgt. Ion Engine blasted off. 02195_ S-10 Pest destroyed. 02196_ Acquired 2 matter. 02333_ A derelict emerges from the shadows. 02334_ 7J-VXM(g): "Some of my friends down here think you need a mining laser when you travel the depths." 02335_ 7J-VXM(g): "They are crazy." 02336_ 7J-VXM(g): "Everyone knows a good old rocket launcher goes a long way." 02337_ 7J-VXM(g): "Need to get rid of a swarm? Done. Need a big hole in the wall? Done." 02338_ 7J-VXM(g): "Need a small hole in the wall? Leave that to the mining laser wimps, I say!" 02339_ 7J-VXM(g): "Would you like a rocket launcher? I know I would if I were you, so I'm going to lend you mine." 02339_ 7J-VXM(g) slips back into the shadows. 02345_ Dropped Mni. Grenade Launcher. 02353_ Acquired Rocket Launcher. Map ----- +----------------------------------------------------+ | | | | | | | | | | | | | | | | | | | | | | | | | | | | | ?????????????????????????????????????????????????? | | ???????????????????????###???????????????????????? | | ?????????????????????### ##?????????????????????? | | ????????????????????## ##????????????????????? | | ????????????????????# #????????????????????? | | ????????????????????# #????????????????????? | | ????????????????????# #????????????????????? | | ???????????????????## #????????????????????? | | ??????????????????## #?????????????????#### | | ??????????????????# ##???????????###### # | | ??????????????????# #########??## | | ??????????????????# @ #### | | ??????????????????## ## # | | ???????????????????# ???## ### | | ???????????????????#??????# ] k ##?? | | ??????????????????????????## t ###? | | ???????????????????????????#### ##### ## | | ??????????????????????????????####???# # | | ????????????????????????????????????## # | | ???????????????????????????????????## ## | | ???????????????????????????????????# #? | | ??????????????????????????????????## ## | | ?????????????????????????????????## # | | ?????????????????????????????????# | | ?????????????????????????????????# | | ????????????????????????????????## | | ????????????????????????????????# | | ????????????????????????????????# | | ????????????????????????????????# ### | | ????????????????????????????????# #### ## | | ???????????????????????????????## ######?## | | ???????????????????????????????# ##?????? | | ???????????????????????????????# ##????? | | ???????????????????????????????# ####?? | | ???????????????????????????????## #?? | | ????????????????????????????????# ### #?? | +----------------------------------------------------+ Best States ------------- Heat Dissipation 35 Energy Generation 14 Energy Capacity 265 Matter Stores 300 Matter Capacity 300 Sight Range 18 Terrain Scan Density 10 Cloak Strength 5 Evasion (%) 55 Item Schematics ----------------- Flight Unit | -10/Materials | Hacked Robot Schematics ------------------ None Fabricated ------------ Nothing Alien Tech Used ----------------- None Achievements -------------- Librarian Tourist Challenges ------------ None Game ------ Seed ArmageddonBoreBlade Manual? 0 Play Time 00:43:55 Cumulative 0.7 hours Start 2024.04.02 @ 15:58:54 End 2024.04.02 @ 16:51:34 Sessions 1 Manual Loads 0 Difficulty Rogue Special Mode None Game No. 3 Rogue 3 Adventurer 0 Explorer 0 Win Type - Total 0 Types 0/0/0/0/0/0/0/0/0 Lore% 9 Gallery% 6 Achievement% 6 Wizard Run 0 Options --------- Layout 0 ASCII 0 Keyboard 0 Movement Mouse Keybinds 0 Fullscreen 1 Font 24/Terminus Map View 113x50 Zoom Use 0% Tactical HUD 1 Map Filters NONE Filters NONE Steam 1 RUN: 3b86700d-e401-4084-b801-1ed84dffdecd